lending/lending_fUSD_20260124
["ID","MTS","AMOUNT","RATE_DAILY","PERIOD"]
[403206621,1769266752734,-200.22499774,0.00011775,2]
[403206623,1769266762584,-392.40814424,0.00011775,2]
[403206624,1769266764181,243.05401169,0.00011675,2]
[403206625,1769266765551,-184.41117946,0.00011775,2]
[403206626,1769266767801,-217.55989941,0.00011775,2]
[403206627,1769266770822,-159.99371674,0.00011775,2]
[403206628,1769266772848,-94300.0,0.00011775,2]
[403206629,1769266773944,-151.63403555,0.00011775,2]
[403206630,1769266777014,-458.39342186,0.00011775,2]
[403206631,1769266779691,-155.23453113,0.00011775,2]
[403206634,1769266782740,-179.954532,0.00011775,2]
[403206635,1769266784377,-406.49236603,0.00011775,2]
[403206636,1769266789501,-297.21630414,0.00011775,2]
[403206637,1769266792986,-251.32815818,0.00011775,2]
[403206638,1769266794168,-288.3268377,0.00011775,2]
[403206639,1769266795587,-2000.0,0.00011775,2]
[403206640,1769266796421,-401.16699822,0.00011775,2]
[403206641,1769266798593,-413.47485461,0.00011775,2]
[403206642,1769266801215,300.0,0.00011774,2]
[403206643,1769266801571,1200.0,0.00011774,2]
[403206644,1769266801955,300.0,0.00011774,2]
[403206645,1769266802574,150.0,0.00011774,2]
[403206648,1769266803577,246.0,0.00011774,2]
[403206650,1769266804602,-153.683692,0.00011775,2]
[403206651,1769266806825,-209.45575477,0.00011775,2]
[403206652,1769266809135,-159.27633665,0.00011775,2]
[403206655,1769266811831,216.0,0.00011774,2]
[403206656,1769266811963,-532.67699838,0.00011775,2]
[403206657,1769266815334,-354.73942231,0.00011775,2]
[403206658,1769266817793,4315.8315,0.00011675,2]
[403206659,1769266819408,-346.98688801,0.00011775,2]
[403206660,1769266821585,-295.66994095,0.00011775,2]
[403206661,1769266824211,-178.70738696,0.00011775,2]
[403206664,1769266827969,-244.33214218,0.00011775,2]
[403206665,1769266829561,-359.00279783,0.00011775,2]
[403206666,1769266832015,-286.6730619,0.00011775,2]
[403206667,1769266835202,-205.78210821,0.00011775,2]
[403206668,1769266837322,-167.44743681,0.00011775,2]
[403206669,1769266840724,-192.88371431,0.00011775,2]
[403206670,1769266843507,-211.16229621,0.00011775,2]
[403206671,1769266845991,-323.15251754,0.00011775,2]
[403206672,1769266848100,-194.78001737,0.00011775,2]
[403206673,1769266849867,-330.14659575,0.00011775,2]
[403206677,1769266850861,-360.06718627,0.00011775,2]
[403206678,1769266853176,-175.19705742,0.00011775,2]
[403206682,1769266855331,-188.41388948,0.00011775,2]
[403206686,1769266856841,-230.81844795,0.00011775,2]
[403206687,1769266858913,-417.16755992,0.00011775,2]
[403206693,1769266862796,-501.00782437,0.00011775,2]
[403206700,1769266864428,-313.32888976,0.00011775,2]
[403206701,1769266866885,-1201.9170089,0.00011675,2]
[403206702,1769266867344,-2403.8340178,0.00011675,2]
[403206703,1769266868171,-4807.6680356,0.00011675,2]
[403206704,1769266868865,-384.6739288,0.00011675,2]
[403206705,1769266868910,-350.63134384,0.00011775,2]
[403206706,1769266870893,-194.48627414,0.00011775,2]
[403206707,1769266872159,-199.09395867,0.00011775,2]
[403206708,1769266873851,-387.2902724,0.00011775,2]
[403206710,1769266877924,-294.89375151,0.00011775,2]
[403206711,1769266882354,-195.0,0.00011775,2]
[403206712,1769266883234,294.8938,0.00011675,2]
[403206713,1769266884007,-250.4054372,0.00011775,2]
[403206714,1769266885804,-231.78535653,0.00011775,2]
[403206715,1769266887188,-240.29600961,0.00011775,2]
[403206716,1769266889398,2500.0,0.00011675,2]
[403206717,1769266889544,-325.05363435,0.00011775,2]
[403206718,1769266891288,-155.66064199,0.00011775,2]
[403206719,1769266892706,2506.476,0.00011539,2]
[403206720,1769266892807,185.889,0.00011539,2]
[403206721,1769266893108,-300.0,0.00011775,2]
[403206722,1769266894610,-200.28840069,0.00011775,2]
[403206723,1769266896445,-308.68261763,0.00011775,2]
[403206724,1769266898466,-209.51412181,0.00011775,2]
[403206725,1769266899823,-267.61962145,0.00011775,2]
[403206726,1769266901662,-249.48742691,0.00011775,2]
[403206729,1769266903779,-294.0938562,0.00011775,2]
[403206731,1769266905942,-280.0356392,0.00011775,2]
[403206734,1769266910391,-214.79177468,0.00011775,2]
[403206735,1769266913144,-390.66590947,0.00011775,2]
[403206736,1769266914699,-353.64986,0.00011775,2]
[403206737,1769266919458,-232.38037855,0.00011775,2]
[403206738,1769266922410,-165.38809843,0.00011775,2]
[403206740,1769266925186,-300.0,0.00011775,2]
[403206741,1769266926720,-249.57927344,0.00011775,2]
[403206742,1769266929804,500.0,0.00011775,2]
[403206743,1769266930460,151.0,0.00011775,2]
[403206744,1769266931782,151.0,0.00011775,2]
[403206745,1769266932351,151.0,0.00011775,2]
[403206746,1769266932936,151.0,0.00011775,2]
[403206747,1769266933424,151.0,0.00011775,2]
[403206748,1769266933793,151.0,0.00011775,2]
[403206749,1769266934485,151.0,0.00011775,2]
[403206750,1769266934793,151.0,0.00011775,2]
[403206751,1769266935304,200.0,0.00011775,2]
[403206752,1769266935353,-381.65287247,0.00011775,2]
[403206753,1769266935608,151.0,0.00011775,2]
[403206754,1769266936136,151.0,0.00011775,2]
[403206755,1769266936719,151.0,0.00011775,2]
[403206757,1769266939062,-221.80068755,0.00011775,2]
[403206758,1769266940505,-156.04509437,0.00011775,2]
[403206759,1769266942649,-315.73649027,0.00011775,2]
[403206760,1769266944245,-170.16172132,0.00011775,2]
[403206761,1769266946279,-317.86534778,0.00011775,2]
[403206762,1769266950044,500.0,0.00011775,2]
[403206763,1769266950550,500.0,0.00011775,2]
[403206764,1769266950765,-281.96627424,0.00011775,2]
[403206765,1769266951105,382.4033424,0.00011775,2]
[403206766,1769266951155,117.5966576,0.00011775,2]
[403206767,1769266951692,500.0,0.00011775,2]
[403206768,1769266952940,500.0,0.00011775,2]
[403206769,1769266953217,-300.0,0.00011775,2]
[403206770,1769266953328,500.0,0.00011775,2]
[403206771,1769266953717,500.0,0.00011775,2]
[403206772,1769266954191,500.0,0.00011775,2]
[403206773,1769266954344,-300.0,0.00011775,2]
[403206774,1769266954540,500.0,0.00011775,2]
[403206775,1769266955481,500.0,0.00011775,2]
[403206776,1769266955994,500.0,0.00011775,2]
[403206778,1769266956589,500.0,0.00011675,2]
[403206779,1769266956671,-154.69979071,0.00011775,2]
[403206780,1769266958748,-235.34687346,0.00011775,2]
[403206781,1769266960258,-451.24011516,0.00011775,2]
[403206782,1769266962074,-303.83949465,0.00011775,2]
[403206783,1769266965075,-300.0,0.00011775,2]
[403206784,1769266966144,241.15184839,0.00011774,2]
[403206785,1769266966220,500.0,0.00011774,2]
[403206786,1769266966320,500.0,0.00011774,2]
[403206787,1769266969463,-321.50264077,0.00011775,2]
[403206788,1769266971906,-240.80712492,0.00011775,2]
[403206789,1769266974275,-189.93713,0.00011775,2]
[403206790,1769266975934,-199.33802202,0.00011775,2]
[403206791,1769266977175,500.0,0.00011774,2]
[403206792,1769266978715,287.17308515,0.00011774,2]
[403206793,1769266978790,500.0,0.00011774,2]
[403206794,1769266979516,-377.87048298,0.00011775,2]
[403206795,1769266981641,300.0,0.00011774,2]
[403206797,1769266982670,150.0,0.00011774,2]
[403206798,1769266983166,-183.85483595,0.00011775,2]
[403206799,1769266985755,-181.97124119,0.00011775,2]
[403206802,1769266988430,-159.47121487,0.00011775,2]
[403206803,1769266992082,500.0,0.00011774,2]
[403206804,1769266992161,500.0,0.00011774,2]
[403206805,1769266992314,500.0,0.00011774,2]
[403206806,1769266992441,500.0,0.00011774,2]
[403206807,1769267000934,404.08840886,0.00011774,2]
[403206808,1769267000991,461.91159114,0.00011774,2]
[403206809,1769267012919,8700.8933,0.00011675,2]
[403206810,1769267018084,531.19851364,0.00011774,2]
[403206811,1769267018183,306.00659522,0.00011774,2]
[403206812,1769267018237,193.99340478,0.00011774,2]
[403206813,1769267018431,500.0,0.00011774,2]
[403206814,1769267018500,223.40679946,0.00011774,2]
[403206815,1769267019594,2500.0,0.00011675,2]
[403206816,1769267041997,300.0,0.00011774,2]
[403206818,1769267063507,500.0,0.00011774,2]
[403206819,1769267064297,500.0,0.00011774,2]
[403206820,1769267064654,500.0,0.00011774,2]
[403206821,1769267064981,521.60547902,0.00011774,2]
[403206824,1769267074315,249.27755916,0.00011675,2]
[403206825,1769267080190,500.0,0.00011774,2]
[403206826,1769267080280,500.0,0.00011774,2]
[403206827,1769267080366,500.0,0.00011774,2]
[403206828,1769267080456,178.40352098,0.00011774,2]
[403206829,1769267080525,500.0,0.00011774,2]
[403206830,1769267080623,500.0,0.00011774,2]
[403206831,1769267080713,500.0,0.00011774,2]
[403206832,1769267080780,500.0,0.00011774,2]
[403206833,1769267080847,333.3232366,0.00011774,2]
[403206834,1769267080899,166.6767634,0.00011774,2]
[403206835,1769267080969,500.0,0.00011774,2]
[403206836,1769267081065,500.0,0.00011774,2]
[403206837,1769267081173,500.0,0.00011774,2]
[403206838,1769267081284,500.0,0.00011774,2]
[403206839,1769267081357,500.0,0.00011774,2]
[403206840,1769267081471,500.0,0.00011774,2]
[403206841,1769267081592,500.0,0.00011774,2]
[403206842,1769267081665,500.0,0.00011774,2]
[403206843,1769267082092,500.0,0.00011774,2]
[403206844,1769267082206,500.0,0.00011774,2]
[403206845,1769267082278,500.0,0.00011774,2]
[403206846,1769267101578,1200.0,0.00011774,2]
[403206855,1769267119613,3133.3332366,0.00011675,2]
[403206856,1769267119667,10000.01,0.00011675,2]
[403206857,1769267119720,10000.01,0.00011675,2]
[403206858,1769267119770,10000.01,0.00011675,2]
[403206859,1769267119823,5312.00143785,0.00011675,2]
[403206861,1769267134809,3844.790966,0.00011716,2]
[403206865,1769267167833,191.0,0.00011655,2]
[403206866,1769267194729,10000.01,0.00011612,2]
[403206867,1769267194777,628.86,0.00011612,2]
[403206868,1769267196904,500.0,0.00011612,2]
[403206869,1769267202828,212.72649556,0.00011673,2]
[403206870,1769267208733,212.72649555,0.00011674,2]
[403206874,1769267247469,1500.0,0.00011541,2]
[403206887,1769267295748,1102.07325121,0.00013749,5]
[403206888,1769267300576,927.0,0.00011674,2]
[403206891,1769267310465,-184.31917888,0.00011675,2]
[403206892,1769267311488,360.31107378,0.00011674,2]
[403206893,1769267315054,-233.45275391,0.00011675,2]
[403206895,1769267317719,-227.76226462,0.00011675,2]
[403206897,1769267320058,-315.68082112,0.00011675,2]
[403206898,1769267322407,-267.66914738,0.00011675,2]
[403206899,1769267326248,-155.24071074,0.00011675,2]
[403206900,1769267331195,-251.22428166,0.00011675,2]
[403206911,1769267343198,150.0,0.00011674,2]
[403206912,1769267346044,500.0,0.00011674,2]
[403206913,1769267346183,232.55748455,0.00011674,2]
[403206914,1769267348649,229.393993,7.945e-05,2]
[403206915,1769267360873,500.0,0.00011674,2]
[403206916,1769267360962,500.0,0.00011674,2]
[403206917,1769267361026,500.0,0.00011674,2]
[403206918,1769267361113,484.39689481,0.00011674,2]
[403206919,1769267361177,500.0,0.00011674,2]
[403206920,1769267361289,500.0,0.00011674,2]
[403206921,1769267361359,500.0,0.00011674,2]
[403206922,1769267361444,500.0,0.00011674,2]
[403206923,1769267361612,500.0,0.00011674,2]
[403206925,1769267367424,62.03756275,0.00011674,2]
[403206926,1769267367476,237.96243725,0.00011674,2]
[403206929,1769267379208,9480.44349342,0.00011575,2]
[403206931,1769267381262,281.60406933,0.00011674,2]
[403206932,1769267381309,4137.85766507,0.00011674,2]
[403206936,1769267388809,500.0,0.00011674,2]
[403206937,1769267388870,500.0,0.00011674,2]
[403206939,1769267389318,500.0,0.00011674,2]
[403206940,1769267389426,500.0,0.00011674,2]
[403206941,1769267389495,500.0,0.00011674,2]
[403206942,1769267389568,500.0,0.00011674,2]
[403206943,1769267389656,484.39689481,0.00011674,2]
[403206944,1769267389760,500.0,0.00011674,2]
[403206945,1769267389907,500.0,0.00011674,2]
[403206948,1769267394348,276.09590459,0.00011575,2]
[403206949,1769267401308,300.0,0.00011674,2]
[403206950,1769267401479,1200.0,0.00011674,2]
[403206951,1769267401554,221.0,0.00011674,2]
[403206953,1769267401872,300.0,0.00011674,2]
[403206963,1769267409015,1058.42828268,0.00011575,2]
[403206984,1769267420298,500.0,0.00011674,2]
[403206986,1769267420412,500.0,0.00011674,2]
[403206987,1769267420482,500.0,0.00011674,2]
[403206988,1769267420610,500.0,0.00011674,2]
[403206989,1769267420686,524.84923395,0.00011674,2]
[403206990,1769267420762,500.0,0.00011674,2]
[403206992,1769267420848,500.0,0.00011674,2]
[403206993,1769267420981,500.0,0.00011674,2]
[403206994,1769267421085,500.0,0.00011674,2]
[403207001,1769267430637,500.0,0.00011674,2]
[403207002,1769267430876,-270.77077548,0.00011675,2]
[403207003,1769267431076,500.0,0.00011674,2]
[403207004,1769267431226,643.38973973,0.00011674,2]
[403207005,1769267431333,476.24683905,0.00011674,2]
[403207006,1769267431389,23.75316095,0.00011674,2]
[403207014,1769267431678,500.0,0.00011674,2]
[403207023,1769267432202,-593.88006621,0.00011675,2]
[403207024,1769267432211,-1231.18350917,0.00011675,2]
[403207025,1769267432292,500.0,0.00011674,2]
[403207026,1769267432335,-9805.73974299,0.00011675,2]
[403207027,1769267432346,-5265.45272466,0.00011675,2]
[403207028,1769267432358,-8301.16846777,0.00011675,2]
[403207030,1769267432403,-1321.58232096,0.00011675,2]
[403207031,1769267432414,-626.31575954,0.00011675,2]
[403207032,1769267432426,-8328.0,0.00011675,2]
[403207033,1769267432437,-696.11200438,0.00011675,2]
[403207034,1769267432472,-712.26363549,0.00011675,2]
[403207035,1769267432484,-963712.18183504,0.00011675,2]
[403207036,1769267432494,-250.0,0.00011675,2]
[403207037,1769267432503,-300.0,0.00011675,2]
[403207038,1769267432512,-212.72649555,0.00011675,2]
[403207039,1769267432522,-246.0,0.00011675,2]
[403207040,1769267432531,-364.73232441,0.00011714,2]
[403207041,1769267432541,-300.0,0.00011773,2]
[403207042,1769267432553,-625.171478,0.00011774,2]
[403207043,1769267432562,-151.0,0.00011775,2]
[403207044,1769267432572,-151.0,0.00011775,2]
[403207045,1769267432582,-151.0,0.00011775,2]
[403207046,1769267432593,-151.0,0.00011775,2]
[403207047,1769267432602,-151.0,0.00011775,2]
[403207048,1769267432612,-151.0,0.00011775,2]
[403207049,1769267432622,-151.0,0.00011775,2]
[403207050,1769267432632,-151.0,0.00011775,2]
[403207051,1769267432641,-151.0,0.00011775,2]
[403207052,1769267432651,-151.0,0.00011775,2]
[403207053,1769267432660,-151.0,0.00011775,2]
[403207054,1769267432670,-200.0,0.00011775,2]
[403207055,1769267432680,-500.0,0.00011775,2]
[403207056,1769267432690,-500.0,0.00011775,2]
[403207057,1769267432700,-500.0,0.00011775,2]
[403207058,1769267432709,-500.0,0.00011775,2]
[403207059,1769267432719,-500.0,0.00011775,2]
[403207060,1769267432728,-500.0,0.00011775,2]
[403207061,1769267432738,-500.0,0.00011775,2]
[403207062,1769267432747,-500.0,0.00011775,2]
[403207063,1769267432756,-500.0,0.00011775,2]
[403207064,1769267432766,-203.4024444,0.00011775,2]
[403207065,1769267432775,-500.0,0.00011775,2]
[403207066,1769267432784,-7746.3683,0.00011775,2]
[403207067,1769267432794,-391.3649,0.00011775,2]
[403207068,1769267432803,-1023.22701071,0.00011775,2]
[403207069,1769267432813,-200.0,0.00011775,2]
[403207070,1769267432822,-151.0,0.00011775,2]
[403207071,1769267432831,-200.0,0.00011775,2]
[403207072,1769267432840,-339.25564708,0.00011775,2]
[403207073,1769267432850,-151.0,0.00011775,2]
[403207074,1769267432859,-1000.0,0.00011775,2]
[403207075,1769267432869,-433.36232072,0.00011775,2]
[403207076,1769267432879,-161.0,0.000118,2]
[403207077,1769267432889,-1000.0,0.00011874,2]
[403207078,1769267432899,-200.0,0.00011893,2]
[403207079,1769267432910,-200.0,0.00011893,2]
[403207080,1769267432920,-200.0,0.00012012,2]
[403207081,1769267432929,-200.0,0.00012012,2]
[403207082,1769267432938,-200.0,0.00012132,2]
[403207083,1769267432947,-200.0,0.00012132,2]
[403207084,1769267432957,-53018.03334887,0.00012238,2]
[403207085,1769267432967,-500.0,0.00012253,2]
[403207086,1769267432977,-200.0,0.00012253,2]
[403207087,1769267432987,-5091.79,0.00012253,2]
[403207088,1769267432997,-389.79,0.00012253,2]
[403207089,1769267433006,-150.99,0.00012253,2]
[403207090,1769267433016,-9999.99,0.00012253,2]
[403207091,1769267433026,-20016.77,0.00012253,2]
[403207092,1769267433034,-9999.99,0.00012253,2]
[403207093,1769267433044,-200.0,0.00012253,2]
[403207094,1769267433053,-9480.44349339,0.00012278,2]
[403207095,1769267433062,-150.0,0.00012289,2]
[403207096,1769267433072,-500.0,0.00012323,2]
[403207097,1769267433081,-964.0,0.00012357,2]
[403207098,1769267433091,-38445.36467444,0.00012367,2]
[403207099,1769267433100,-200.0,0.00012373,2]
[403207100,1769267433110,-292.0,0.00012381,2]
[403207101,1769267433119,-1507.0,0.00012381,2]
[403207102,1769267433129,-1247.0,0.00012407,2]
[403207103,1769267433138,-276.09590455,0.00012479,2]
[403207104,1769267433148,-2782.4,0.00012497,2]
[403207105,1769267433157,-161.0,0.000125,2]
[403207106,1769267433167,-1618.9,0.00012593,2]
[403207107,1769267433176,-161.0,0.000126,2]
[403207108,1769267433186,-492.86,0.00012629,2]
[403207109,1769267433196,-255.0,0.00012748,2]
[403207110,1769267433205,-1058.42828266,0.00012751,2]
[403207111,1769267433214,-300.0,0.00012819,2]
[403207112,1769267433224,-301.0,0.00012819,2]
[403207113,1769267433233,-420.0,0.00012819,2]
[403207114,1769267433243,-1680.0,0.00012841,2]
[403207115,1769267433253,-300.0,0.00012842,2]
[403207116,1769267433263,-230.11088144,0.00012842,2]
[403207117,1769267433273,-250.0,0.00012842,2]
[403207118,1769267433282,-150.0,0.00012844,2]
[403207119,1769267433291,-500.0,0.00012844,2]
[403207120,1769267433301,-293.0,0.00012844,2]
[403207121,1769267433310,-500.0,0.00012844,2]
[403207122,1769267433320,-150.0,0.00012844,2]
[403207123,1769267433329,-150.0,0.00012844,2]
[403207124,1769267433339,-500.0,0.00012844,2]
[403207125,1769267433349,-500.0,0.00012844,2]
[403207126,1769267433358,-500.0,0.00012844,2]
[403207127,1769267433368,-150.0,0.00012844,2]
[403207128,1769267433378,-150.0,0.00012844,2]
[403207129,1769267433388,-500.0,0.00012844,2]
[403207130,1769267433397,-778.0,0.00012844,2]
[403207131,1769267433407,-500.0,0.00012844,2]
[403207132,1769267433416,-150.0,0.00012844,2]
[403207133,1769267433425,-500.0,0.00012871,2]
[403207134,1769267433435,-500.0,0.00012899,2]
[403207135,1769267433444,-500.0,0.00012899,2]
[403207136,1769267433454,-150.0,0.00012899,2]
[403207137,1769267433463,-500.0,0.00012899,2]
[403207138,1769267433473,-500.0,0.00012899,2]
[403207139,1769267433482,-500.0,0.00012899,2]
[403207140,1769267433492,-500.0,0.00012899,2]
[403207141,1769267433501,-778.0,0.00012899,2]
[403207142,1769267433510,-500.0,0.00012899,2]
[403207143,1769267433519,-150.0,0.00012899,2]
[403207144,1769267433528,-300.0,0.0001295,2]
[403207145,1769267433537,-500.0,0.00012951,2]
[403207146,1769267433547,-500.0,0.00012954,2]
[403207147,1769267433560,-156.18320436,0.00012954,2]
[403207148,1769267433569,-200.0,0.00012954,2]
[403207149,1769267433579,-500.0,0.00012954,2]
[403207150,1769267433589,-500.0,0.00012954,2]
[403207151,1769267433598,-637.63798151,0.00012954,2]
[403207152,1769267433608,-500.0,0.00012954,2]
[403207153,1769267433617,-778.0,0.00012954,2]
[403207154,1769267433627,-500.0,0.00012954,2]
[403207155,1769267433636,-282.01869271,0.00012963,2]
[403207156,1769267433646,-9480.44349339,0.00012981,2]
[403207157,1769267433655,-881.89,0.00013008,2]
[403207158,1769267433664,-150.0,0.00013008,2]
[403207159,1769267433673,-150.0,0.00013008,2]
[403207160,1769267433682,-500.0,0.00013008,2]
[403207161,1769267433691,-153.21260792,0.00013008,2]
[403207162,1769267433701,-438.0,0.00013008,2]
[403207163,1769267433710,-500.0,0.00013008,2]
[403207164,1769267433719,-778.0,0.00013008,2]
[403207165,1769267433728,-641.79528913,0.00013008,2]
[403207166,1769267433737,-881.89,0.00013035,2]
[403207167,1769267433747,-1778.85267918,0.00013048,2]
[403207168,1769267433757,-38445.36467444,0.00013058,2]
[403207169,1769267433767,-881.89,0.00013063,2]
[403207170,1769267433777,-225.50315905,0.00013063,2]
[403207171,1769267433786,-150.0,0.00013063,2]
[403207172,1769267433795,-500.0,0.00013063,2]
[403207173,1769267433804,-500.0,0.00013063,2]
[403207174,1769267433814,-778.0,0.00013063,2]
[403207175,1769267433824,-3841.05904453,0.00013068,2]
[403207176,1769267433832,-881.89,0.0001309,2]
[403207177,1769267433842,-881.89,0.00013118,2]
[403207178,1769267433852,-150.0,0.00013118,2]
[403207179,1769267433861,-500.0,0.00013118,2]
[403207180,1769267433870,-500.0,0.00013118,2]
[403207181,1769267433878,-778.0,0.00013118,2]
[403207182,1769267433888,-881.89,0.00013145,2]
[403207183,1769267433897,-252.63713623,0.00013145,2]
[403207184,1769267433906,-500.0,0.00013145,2]
[403207185,1769267433916,-11096.56,0.00013151,2]
[403207186,1769267433925,-881.89,0.00013172,2]
[403207187,1769267433934,-200.0,0.00013172,2]
[403207188,1769267433943,-500.0,0.00013173,2]
[403207189,1769267433952,-500.0,0.00013173,2]
[403207190,1769267433962,-778.0,0.00013173,2]
[403207191,1769267433971,-881.89,0.000132,2]
[403207192,1769267433980,-500.0,0.000132,2]
[403207193,1769267433989,-881.89,0.00013227,2]
[403207194,1769267433999,-500.0,0.00013228,2]
[403207195,1769267434009,-500.0,0.00013228,2]
[403207196,1769267434018,-778.0,0.00013228,2]
[403207197,1769267434027,-881.89,0.00013255,2]
[403207198,1769267434037,-500.0,0.00013255,2]
[403207199,1769267434046,-881.89,0.00013282,2]
[403207200,1769267434056,-500.0,0.00013282,2]
[403207201,1769267434065,-500.0,0.00013282,2]
[403207202,1769267434074,-778.0,0.00013282,2]
[403207203,1769267434084,-881.89,0.00013309,2]
[403207204,1769267434093,-500.0,0.00013309,2]
[403207205,1769267434102,-350.97,0.00013336,2]
[403207206,1769267434111,-881.89,0.00013337,2]
[403207207,1769267434121,-500.0,0.00013337,2]
[403207208,1769267434131,-261.82083594,0.00013337,2]
[403207209,1769267434141,-778.0,0.00013337,2]
[403207210,1769267434150,-881.89,0.00013364,2]
[403207211,1769267434159,-500.0,0.00013364,2]
[403207212,1769267434168,-276.09590455,0.00013382,2]
[403207213,1769267434178,-881.89,0.00013392,2]
[403207214,1769267434188,-500.0,0.00013392,2]
[403207215,1769267434198,-778.0,0.00013392,2]
[403207216,1769267434207,-881.89,0.00013419,2]
[403207217,1769267434216,-450.0,0.00013419,2]
[403207218,1769267434226,-201.980302,0.00013424,2]
[403207219,1769267434236,-150.0,0.00013424,2]
[403207220,1769267434245,-152.18149603,0.00013424,2]
[403207221,1769267434255,-152.45791979,0.00013424,2]
[403207222,1769267434264,-151.82706047,0.00013424,2]
[403207223,1769267434273,-150.93281041,0.00013424,2]
[403207224,1769267434283,-150.62026844,0.00013424,2]
[403207225,1769267434292,-150.65129016,0.00013424,2]
[403207226,1769267434301,-150.0,0.00013424,2]
[403207227,1769267434311,-1884.94,0.00013424,2]
[403207228,1769267434320,-881.89,0.00013446,2]
[403207229,1769267434330,-500.0,0.00013447,2]
[403207230,1769267434339,-778.0,0.00013447,2]
[403207231,1769267434348,-881.89,0.00013474,2]
[403207232,1769267434359,-881.89,0.00013501,2]
[403207233,1769267434369,-500.0,0.00013502,2]
[403207234,1769267434379,-778.0,0.00013502,2]
[403207235,1769267434388,-881.89,0.00013529,2]
[403207236,1769267434397,-500.0,0.00013556,2]
[403207237,1769267434406,-778.0,0.00013556,2]
[403207238,1769267434415,-334.98771886,0.00013611,2]
[403207239,1769267434425,-778.0,0.00013611,2]
[403207240,1769267434434,-974.67365365,0.0001365,2]
[403207241,1769267434443,-778.0,0.00013666,2]
[403207242,1769267434453,-9480.44349339,0.00013683,2]
[403207243,1769267434463,-500.0,0.00013698,2]
[403207244,1769267434473,-587.48435164,0.00013698,2]
[403207245,1769267434483,-500.0,0.00013698,2]
[403207246,1769267434492,-386.45682453,0.00013698,2]
[403207247,1769267434503,-500.0,0.00013698,2]
[403207248,1769267434512,-500.0,0.00013698,2]
[403207249,1769267434525,-500.0,0.00013698,2]
[403207250,1769267434535,-500.0,0.00013698,2]
[403207251,1769267434544,-500.0,0.00013698,2]
[403207252,1769267434557,-532.3010884,0.00013698,2]
[403207253,1769267434566,-501.14381708,0.00013698,2]
[403207254,1769267434576,-412.69872732,0.00013698,2]
[403207255,1769267434585,-500.0,0.00013698,2]
[403207256,1769267434595,-500.0,0.00013698,2]
[403207257,1769267434604,-500.0,0.00013698,2]
[403207258,1769267434614,-510.98377513,0.00013698,2]
[403207259,1769267434625,-500.0,0.00013698,2]
[403207260,1769267434634,-502.89153827,0.00013698,2]
[403207261,1769267434644,-500.0,0.00013698,2]
[403207262,1769267434653,-500.0,0.00013698,2]
[403207263,1769267434663,-500.0,0.00013698,2]
[403207264,1769267434673,-500.0,0.00013698,2]
[403207265,1769267434682,-500.0,0.00013698,2]
[403207266,1769267434691,-500.0,0.00013698,2]
[403207267,1769267434700,-500.0,0.00013698,2]
[403207268,1769267434710,-500.0,0.00013698,2]
[403207269,1769267434719,-500.0,0.00013698,2]
[403207270,1769267434728,-500.0,0.00013698,2]